[Event "Titled Tuesday Blitz June 13 Early 2023"]
[White "Samarth J Rao"]
[Black "Ramirez Vido, Robert Yorisan"]
[WhiteFideId "46652370"]
[BlackFideId "3513823"]
[WhiteElo "1564"]
[BlackElo "2363"]
[Result "1-0"]
[Round "11"]
[TimeControl "180+2"]
[Date "2023.06.13"]
[WhiteClock "0:00:13"]
[BlackClock "0:00:00"]
[Board "131"]

1. Nf3 {[%clk 0:02:59]}  g6 {[%clk 0:02:59]} 2. c4 {[%clk 0:02:56]}  Nf6 {[%clk 0:02:59]} 3. e3 {[%clk 0:02:56]}  Bg7 {[%clk 0:02:59]} 4. Be2 {[%clk 0:02:57]}  O-O {[%clk 0:03:00]} 5. O-O {[%clk 0:02:57]}  d6 {[%clk 0:02:59]} 6. b3 {[%clk 0:02:58]}  e5 {[%clk 0:02:58]} 7. Bb2 {[%clk 0:02:59]}  a5 {[%clk 0:02:55]} 8. Nc3 {[%clk 0:02:58]}  Nc6 {[%clk 0:02:50]} 9. d4 {[%clk 0:02:48]}  exd4 {[%clk 0:02:49]} 10. Nxd4 {[%clk 0:02:45]}  Nxd4 {[%clk 0:02:48]} 11. exd4 {[%clk 0:02:46]}  Bf5 {[%clk 0:02:48]} 12. Bf3 {[%clk 0:02:45]}  c6 {[%clk 0:02:47]} 13. Qd2 {[%clk 0:02:38]}  Re8 {[%clk 0:02:43]} 14. Rae1 {[%clk 0:02:35]}  Qd7 {[%clk 0:02:42]} 15. h3 {[%clk 0:02:31]}  h5 {[%clk 0:02:30]} 16. Na4 {[%clk 0:02:31]}  Qc7 {[%clk 0:02:21]} 17. Bc3 {[%clk 0:02:29]}  Be4 {[%clk 0:01:42]} 18. Qf4 {[%clk 0:02:04]}  Bxf3 {[%clk 0:01:32]} 19. Qxf3 {[%clk 0:02:04]}  b5 {[%clk 0:01:31]} 20. Nb2 {[%clk 0:01:54]}  b4 {[%clk 0:01:28]} 21. Bd2 {[%clk 0:01:51]}  Nd7 {[%clk 0:01:24]} 22. Qd3 {[%clk 0:01:47]}  c5 {[%clk 0:01:20]} 23. Be3 {[%clk 0:01:47]}  cxd4 {[%clk 0:01:18]} 24. Bxd4 {[%clk 0:01:46]}  Ne5 {[%clk 0:01:17]} 25. Bxe5 {[%clk 0:01:45]}  Rxe5 {[%clk 0:01:12]} 26. Rxe5 {[%clk 0:01:44]}  Bxe5 {[%clk 0:01:11]} 27. Qd5 {[%clk 0:01:38]}  Re8 {[%clk 0:01:06]} 28. Nd3 {[%clk 0:01:38]}  Bc3 {[%clk 0:01:00]} 29. f4 {[%clk 0:01:23]}  Qe7 {[%clk 0:00:35]} 30. f5 {[%clk 0:01:17]}  Qf6 {[%clk 0:00:35]} 31. Rf3 {[%clk 0:01:02]}  Qd4+ {[%clk 0:00:32]} 32. Qxd4 {[%clk 0:01:02]}  Bxd4+ {[%clk 0:00:33]} 33. Kf1 {[%clk 0:01:02]}  Bc3 {[%clk 0:00:27]} 34. fxg6 {[%clk 0:00:55]}  fxg6 {[%clk 0:00:28]} 35. g4 {[%clk 0:00:54]}  hxg4 {[%clk 0:00:27]} 36. hxg4 {[%clk 0:00:55]}  Kg7 {[%clk 0:00:28]} 37. Nf4 {[%clk 0:00:51]}  Re1+ {[%clk 0:00:27]} 38. Kg2 {[%clk 0:00:52]}  Re4 {[%clk 0:00:21]} 39. Kh3 {[%clk 0:00:44]}  Be5 {[%clk 0:00:20]} 40. Ne6+ {[%clk 0:00:38]}  Kh6 {[%clk 0:00:17]} 41. Kg2 {[%clk 0:00:30]}  Rxg4+ {[%clk 0:00:17]} 42. Kf1 {[%clk 0:00:26]}  Rh4 {[%clk 0:00:18]} 43. Nd8 {[%clk 0:00:19]}  Rh1+ {[%clk 0:00:16]} 44. Ke2 {[%clk 0:00:20]}  Rh2+ {[%clk 0:00:16]} 45. Kd3 {[%clk 0:00:17]}  Rxa2 {[%clk 0:00:17]} 46. c5 {[%clk 0:00:18]}  Kg5 {[%clk 0:00:09]} 47. c6 {[%clk 0:00:17]}  Ra1 {[%clk 0:00:06]} 48. Rf2 {[%clk 0:00:14]}  Rc1 {[%clk 0:00:04]} 49. Rc2 {[%clk 0:00:13]}  Rxc2 {[%clk 0:00:00]} 50. Kxc2 {[%clk 0:00:13]} 1-0


[Site "https://www.chess.com"]

[Event "Titled Tuesday Blitz June 13 Early 2023"]
[White "Pein, Jonathan"]
[Black "babbilator"]
[WhiteFideId "417092"]
[WhiteElo "2151"]
[BlackElo "2278"]
[Result "1-0"]
[Round "11"]
[TimeControl "180+2"]
[Date "2023.06.13"]
[WhiteClock "0:01:52"]
[BlackClock "0:00:38"]
[Board "134"]

1. g3 {[%clk 0:03:00]}  e5 {[%clk 0:02:53]} 2. Bg2 {[%clk 0:03:00]}  f5 {[%clk 0:02:46]} 3. d4 {[%clk 0:02:56]}  e4 {[%clk 0:02:43]} 4. c4 {[%clk 0:02:56]}  Nf6 {[%clk 0:02:43]} 5. h4 {[%clk 0:02:55]}  d5 {[%clk 0:02:37]} 6. Nc3 {[%clk 0:02:52]}  c6 {[%clk 0:02:22]} 7. cxd5 {[%clk 0:02:46]}  cxd5 {[%clk 0:02:17]} 8. Bg5 {[%clk 0:02:46]}  Bb4 {[%clk 0:02:07]} 9. Qb3 {[%clk 0:02:41]}  Nc6 {[%clk 0:02:05]} 10. e3 {[%clk 0:02:39]}  O-O {[%clk 0:01:50]} 11. Bxf6 {[%clk 0:02:38]}  Qxf6 {[%clk 0:01:47]} 12. Qxd5+ {[%clk 0:02:35]}  Be6 {[%clk 0:01:47]} 13. Qb5 {[%clk 0:02:36]}  a6 {[%clk 0:01:34]} 14. Qe2 {[%clk 0:02:26]}  Na5 {[%clk 0:01:28]} 15. Nh3 {[%clk 0:02:23]}  Bc4 {[%clk 0:01:27]} 16. Qh5 {[%clk 0:02:21]}  Rac8 {[%clk 0:01:17]} 17. Nf4 {[%clk 0:02:20]}  Bd3 {[%clk 0:00:57]} 18. Nxd3 {[%clk 0:02:13]}  exd3 {[%clk 0:00:58]} 19. O-O {[%clk 0:02:13]}  Nc4 {[%clk 0:00:53]} 20. Nd5 {[%clk 0:02:12]}  Qd6 {[%clk 0:00:49]} 21. Nf4 {[%clk 0:02:02]}  g6 {[%clk 0:00:39]} 22. Qh6 {[%clk 0:01:52]}  Nb6 {[%clk 0:00:38]} 1-0


[Site "https://www.chess.com"]

[Event "Titled Tuesday Blitz June 13 Early 2023"]
[White "Tuleyeva-Aketayeva, Dana"]
[Black "Ozalp, Burak"]
[WhiteFideId "13701932"]
[BlackFideId "6314210"]
[WhiteElo "2030"]
[BlackElo "2106"]
[Result "0-1"]
[Round "11"]
[TimeControl "180+2"]
[Date "2023.06.13"]
[WhiteClock "0:00:00"]
[BlackClock "0:00:45"]
[Board "137"]

1. d4 {[%clk 0:03:00]}  Nf6 {[%clk 0:02:59]} 2. Nf3 {[%clk 0:03:01]}  g6 {[%clk 0:03:00]} 3. g3 {[%clk 0:03:02]}  Bg7 {[%clk 0:03:00]} 4. Bg2 {[%clk 0:03:03]}  O-O {[%clk 0:03:01]} 5. O-O {[%clk 0:03:04]}  d6 {[%clk 0:03:01]} 6. Nc3 {[%clk 0:03:04]}  c5 {[%clk 0:03:01]} 7. dxc5 {[%clk 0:03:01]}  dxc5 {[%clk 0:03:01]} 8. Qxd8 {[%clk 0:02:58]}  Rxd8 {[%clk 0:03:02]} 9. Be3 {[%clk 0:02:57]}  Na6 {[%clk 0:03:01]} 10. a3 {[%clk 0:02:55]}  Bf5 {[%clk 0:03:01]} 11. Ne5 {[%clk 0:02:50]}  Rab8 {[%clk 0:02:36]} 12. Bf4 {[%clk 0:02:48]}  Nh5 {[%clk 0:02:32]} 13. Nxg6 {[%clk 0:02:27]}  hxg6 {[%clk 0:02:26]} 14. Bxb8 {[%clk 0:02:27]}  Rxb8 {[%clk 0:02:27]} 15. e4 {[%clk 0:02:19]}  Be6 {[%clk 0:02:20]} 16. Rab1 {[%clk 0:01:45]}  Nc7 {[%clk 0:02:12]} 17. Nd5 {[%clk 0:01:35]}  Bxd5 {[%clk 0:02:05]} 18. exd5 {[%clk 0:01:36]}  Ne8 {[%clk 0:02:05]} 19. b4 {[%clk 0:01:29]}  c4 {[%clk 0:02:04]} 20. Rfe1 {[%clk 0:01:28]}  Kf8 {[%clk 0:02:02]} 21. a4 {[%clk 0:01:28]}  Nd6 {[%clk 0:01:58]} 22. b5 {[%clk 0:01:27]}  Nf6 {[%clk 0:01:41]} 23. Rb4 {[%clk 0:01:19]}  Nd7 {[%clk 0:01:35]} 24. Re3 {[%clk 0:01:03]}  Bd4 {[%clk 0:01:29]} 25. Re2 {[%clk 0:00:52]}  b6 {[%clk 0:01:20]} 26. Bf1 {[%clk 0:00:42]}  Rc8 {[%clk 0:01:13]} 27. Bh3 {[%clk 0:00:41]}  f5 {[%clk 0:01:11]} 28. g4 {[%clk 0:00:35]}  Ne5 {[%clk 0:01:07]} 29. gxf5 {[%clk 0:00:29]}  gxf5 {[%clk 0:01:08]} 30. Kg2 {[%clk 0:00:18]}  Kf7 {[%clk 0:01:06]} 31. f4 {[%clk 0:00:17]}  Rg8+ {[%clk 0:00:59]} 32. Bg4 {[%clk 0:00:11]}  Rxg4+ {[%clk 0:00:52]} 33. Kh3 {[%clk 0:00:10]}  Rxf4 {[%clk 0:00:52]} 34. Rb1 {[%clk 0:00:07]}  Ne4 {[%clk 0:00:50]} 35. Rd1 {[%clk 0:00:00]}  Bc5 {[%clk 0:00:45]} 0-1


[Site "https://www.chess.com"]

[Event "Titled Tuesday Blitz June 13 Early 2023"]
[White "Blackwhite017"]
[Black "Georg, Heinz"]
[BlackFideId "4607295"]
[WhiteElo "2138"]
[BlackElo "2297"]
[Result "0-1"]
[Round "11"]
[TimeControl "180+2"]
[Date "2023.06.13"]
[WhiteClock "0:00:15"]
[BlackClock "0:01:27"]
[Board "141"]

1. e4 {[%clk 0:02:59]}  e5 {[%clk 0:02:59]} 2. Nf3 {[%clk 0:02:59]}  Nc6 {[%clk 0:02:59]} 3. Bb5 {[%clk 0:02:59]}  f5 {[%clk 0:02:59]} 4. d3 {[%clk 0:02:56]}  Nf6 {[%clk 0:02:59]} 5. Nc3 {[%clk 0:02:55]}  d6 {[%clk 0:02:59]} 6. Bg5 {[%clk 0:02:52]}  Be7 {[%clk 0:02:59]} 7. Qd2 {[%clk 0:02:48]}  O-O {[%clk 0:02:59]} 8. O-O-O {[%clk 0:02:40]}  fxe4 {[%clk 0:02:56]} 9. dxe4 {[%clk 0:02:39]}  Bg4 {[%clk 0:02:56]} 10. h3 {[%clk 0:02:33]}  Bxf3 {[%clk 0:02:55]} 11. gxf3 {[%clk 0:02:33]}  Nd4 {[%clk 0:02:55]} 12. Bc4+ {[%clk 0:02:24]}  Kh8 {[%clk 0:02:55]} 13. Qe3 {[%clk 0:02:03]}  Nh5 {[%clk 0:02:30]} 14. Bxe7 {[%clk 0:01:50]}  Qxe7 {[%clk 0:02:30]} 15. Rxd4 {[%clk 0:01:12]}  exd4 {[%clk 0:02:28]} 16. Qxd4 {[%clk 0:01:13]}  c6 {[%clk 0:02:11]} 17. Rg1 {[%clk 0:01:09]}  Qf6 {[%clk 0:02:05]} 18. Qd3 {[%clk 0:01:00]}  b5 {[%clk 0:02:03]} 19. Bb3 {[%clk 0:01:00]}  Nf4 {[%clk 0:02:00]} 20. Qf1 {[%clk 0:00:53]}  a5 {[%clk 0:01:59]} 21. a4 {[%clk 0:00:46]}  bxa4 {[%clk 0:01:53]} 22. Nxa4 {[%clk 0:00:45]}  Rab8 {[%clk 0:01:50]} 23. Rg4 {[%clk 0:00:39]}  Ng6 {[%clk 0:01:34]} 24. Qc4 {[%clk 0:00:26]}  Ne5 {[%clk 0:01:28]} 25. Qxc6 {[%clk 0:00:15]}  Nxc6 {[%clk 0:01:27]} 0-1


[Site "https://www.chess.com"]

[Event "Titled Tuesday Blitz June 13 Early 2023"]
[White "Simonovic, Miroslav"]
[Black "Skiadopoulos, Nikolaos"]
[WhiteFideId "919152"]
[BlackFideId "4200772"]
[WhiteElo "2075"]
[BlackElo "2022"]
[Result "1-0"]
[Round "11"]
[TimeControl "180+2"]
[Date "2023.06.13"]
[WhiteClock "0:01:02"]
[BlackClock "0:01:01"]
[Board "142"]

1. d4 {[%clk 0:03:00]}  Nf6 {[%clk 0:02:59]} 2. Bg5 {[%clk 0:03:01]}  e6 {[%clk 0:02:57]} 3. e4 {[%clk 0:03:00]}  Be7 {[%clk 0:02:57]} 4. Bd3 {[%clk 0:03:00]}  d6 {[%clk 0:02:54]} 5. f4 {[%clk 0:02:59]}  Nbd7 {[%clk 0:02:51]} 6. Nf3 {[%clk 0:02:49]}  c5 {[%clk 0:02:47]} 7. Bxf6 {[%clk 0:02:46]}  Bxf6 {[%clk 0:02:45]} 8. e5 {[%clk 0:02:45]}  Be7 {[%clk 0:02:44]} 9. dxc5 {[%clk 0:02:37]}  Nxc5 {[%clk 0:02:43]} 10. Bb5+ {[%clk 0:02:24]}  Bd7 {[%clk 0:02:43]} 11. Bxd7+ {[%clk 0:02:11]}  Qxd7 {[%clk 0:02:41]} 12. O-O {[%clk 0:02:07]}  d5 {[%clk 0:02:36]} 13. Nd4 {[%clk 0:01:58]}  O-O {[%clk 0:02:33]} 14. Nd2 {[%clk 0:01:57]}  g6 {[%clk 0:02:22]} 15. c3 {[%clk 0:01:56]}  Rac8 {[%clk 0:02:04]} 16. Qe2 {[%clk 0:01:55]}  a6 {[%clk 0:02:00]} 17. g4 {[%clk 0:01:54]}  Na4 {[%clk 0:01:54]} 18. N2b3 {[%clk 0:01:44]}  b5 {[%clk 0:01:49]} 19. f5 {[%clk 0:01:42]}  exf5 {[%clk 0:01:33]} 20. gxf5 {[%clk 0:01:42]}  Bc5 {[%clk 0:01:06]} 21. Qe3 {[%clk 0:01:04]}  gxf5 {[%clk 0:01:07]} 22. Qg5+ {[%clk 0:01:04]}  Kh8 {[%clk 0:01:06]} 23. Qf6+ {[%clk 0:01:04]}  Kg8 {[%clk 0:01:05]} 24. Rxf5 {[%clk 0:01:04]}  Rc6 {[%clk 0:01:01]} 25. Rg5# {[%clk 0:01:02]} 1-0


[Site "https://www.chess.com"]